[Event "35th Staufer-Open-A 2025"]
[Site "Schwaebisch Gmuend"]
[Date "2025.01.06"]
[Round "9.17"]
[White "Ehmann, Thilo"]
[Black "Yasmo, Daniil"]
[Result "1-0"]
[ECO "C67"]
[WhiteElo "2335"]
[BlackElo "2138"]
[Annotator "TA"]
[PlyCount "113"]
[EventDate "2024.11.24"]
[EventType "swiss"]
[EventCountry "GER"]
[SourceTitle "playchess.com"]
[Source "ChessBase"]
[SourceQuality "1"]
[TimeControl "40/6000+30:1200+30"]

{[%evp 16,113,24,24,17,17,18,20,5,0,14,-15,0,0,0,0,0,0,10,4,9,0,0,-4,8,0,6,3,33,27,36,28,27,27,24,25,40,32,31,33,36,37,119,117,43,70,120,92,182,92,92,92,81,79,81,14,17,14,18,17,17,17,17,17,242,232,228,233,215,45,221,208,472,422,478,464,550,548,1965,1603,975,1354,573,73,5624,5085,29987,29988,29988,29989,29989,29990,29990,29983,29983,29984,29984,29985,29985,29982]} 1. e4 {[%emt 0:05:41]} e5 {[%emt 0:00:05]} 2. Nf3 {[%emt 0:00:03]} Nc6 {[%emt 0:00:09]} 3. Bb5 {[%emt 0:00:02]} Nf6 {[%emt 0:00:06]} 4. O-O {[%emt 0:00:09]} Nxe4 {[%emt 0:00:03]} 5. d4 {[%emt 0:00:04]} Nd6 {[%emt 0:00:04]} 6. Bxc6 {[%emt 0:00:05]} dxc6 {[%emt 0:00:04]} 7. dxe5 {[%emt 0:00:04]} Nf5 {[%emt 0:00:02]} 8. Qxd8+ {[%emt 0:00:05]} Kxd8 {[%emt 0:00:04]} 9. h3 {[%emt 0:00:05]} Be7 {[%emt 0:01:11]} 10. Nc3 {[%emt 0:00:33]} Ke8 {[%emt 0:10:13]} 11. Bf4 {[%emt 0:02:50]} Be6 {[%emt 0:02:00] The position is equal.} 12. Rad1 {[%emt 0:00:00]} Rd8 {[%emt 0:01:46]} 13. Rxd8+ {[%emt 0:00:00]} Kxd8 {[%emt 0:01:13]} 14. g4 {[%emt 0:10:40]} Nh4 {[%emt 0:00:41]} 15. Nxh4 {[%emt 0:00:20]} Bxh4 {[%emt 0:00:05]} 16. Kg2 {[%emt 0:00:31]} h5 {[%emt 0:08:51]} 17. f3 {[%emt 0:00:46]} Kc8 {[%emt 0:04:09]} 18. Ne4 {[%emt 0:04:19]} Bd5 {[%emt 0:12:45]} (18... Bxa2 $2 {loses.} 19. b3 $18) 19. Ng3 {[%emt 0:03:27]} hxg4 {[%emt 0:08:50]} (19... Bxa2 $2 20. b3 $18) 20. hxg4 {[%emt 0:00:08]} Bxg3 {[%emt 0:00:04]} (20... Bxa2 $2 21. b3 $18) 21. Kxg3 $11 {[%emt 0:00:30][%mdl 4096] Endgame. KRB-KRB} Kd7 {[%emt 0:03:24][%cal Oc6c5]} 22. b3 {[%emt 0:01:50]} c5 {[%emt 0:01:18]} 23. c4 {[%emt 0:03:05]} Bc6 {[%emt 0:00:13]} 24. Bg5 {[%emt 0:00:45]} Ke6 {[%emt 0:04:18]} 25. Re1 {[%emt 0:01:41]} a5 {[%emt 0:15:35]} 26. a4 {[%emt 0:00:14]} b6 {[%emt 0:01:42]} 27. f4 {[%emt 0:14:27] Strongly threatening f5+.} g6 {[%emt 0:07:56]} 28. Bh4 {[%emt 0:01:17]} Bb7 {[%emt 0:00:39]} (28... Bf3 $1 $14) 29. Rd1 $16 {[%emt 0:01:46]} Be4 {[%emt 0:01:38]} (29... Bc6 $16 30. Rd2 Rc8) 30. Rd2 $14 {[%emt 0:00:06]} Rc8 {[%emt 0:00:38]} (30... Bb1 $14 31. Bd8 Rxd8 32. Rxd8 Bc2) 31. Bf6 $16 {[%emt 0:00:11]} Bc6 {[%emt 0:04:03]} (31... Rf8 $16 32. Kf2 Rc8) 32. Kf2 {[%emt 0:02:11]} ({White should play} 32. Re2 $1 $18) 32... Be4 {[%emt 0:01:24]} 33. Ke3 {[%emt 0:00:05]} Bc6 {[%emt 0:00:02]} 34. Rf2 {[%emt 0:14:22] Hoping for f5+.} Rg8 {[%emt 0:00:39]} 35. f5+ {[%emt 0:02:02]} (35. Rf1 $16) 35... gxf5 $11 {[%emt 0:00:23]} 36. gxf5+ {[%emt 0:00:03]} Kd7 {[%emt 0:00:04]} 37. Rh2 {[%emt 0:00:14] Rh7 is the strong threat.} Rg3+ {[%emt 0:02:45]} 38. Kf4 {[%emt 0:03:29]} Rf3+ {[%emt 0:01:03]} 39. Kg4 $1 {[%emt 0:01:23] Rh7 would now be deadly.} Be4 $2 {[%emt 0:01:03]} (39... Rxb3 $2 {too greedy.} 40. Rh7 Kc8 41. Rxf7 $18) (39... Rf1 $1 $11 {and Black stays safe.}) 40. Re2 $18 {[%emt 0:00:28]} Bc6 {[%emt 0:00:46][%cal Of3d3] [#]} 41. Rd2+ {[%emt 0:27:24]} Kc8 {[%emt 0:20:04][%cal Oc8b7]} 42. Rd8+ {[%emt 0:00:07]} Kb7 {[%emt 0:00:07][%cal Oc6e4]} 43. Rf8 {[%emt 0:00:03]} Be4 $2 {[%emt 0:09:15]} (43... Rxb3 44. Rxf7 Rb4) 44. Rxf7 {[%emt 0:00:41]} Rxf5 {[%emt 0:00:05]} 45. e6 {[%emt 0:00:15] And now e7 would win.} Rf3 {[%emt 0:00:00]} 46. Be5 {[%emt 0:00:00][%csl LRc7,LRf3]} Rxb3 {[%emt 0:00:00]} 47. Rxc7+ {[%emt 0:00:00]} Ka6 {[%emt 0:00:00]} 48. Kg5 {[%emt 0:00:00] e7 would kill now.} Rf3 {[%emt 0:00:00]} 49. Bf4 $2 {[%emt 0:00:00]} (49. Rf7 $18) 49... Bc2 $2 {[%emt 0:00:00][%mdl 8192] [#]} (49... Rh3 $16) 50. Rf7 $1 {[%emt 0:00:00]} Rxf4 {[%emt 0:00:00]} 51. Kxf4 {[%emt 0:00:00] White mates.} Bxa4 {[%emt 0:00:00] KR-KB} 52. e7 {[%emt 0:00:00]} Bc6 {[%emt 0:00:56]} 53. Ke5 {[%emt 0:00:00]} a4 {[%emt 0:05:53]} 54. Kd6 {[%emt 0:00:00]} Be8 {[%emt 0:00:05]} 55. Rf8 {[%emt 0:00:00]} Bh5 {[%emt 0:00:30]} 56. Ra8+ {[%emt 0:00:00]} Kb7 {[%emt 0:00:04]} 57. Rxa4 {[%emt 0:00:00] Weighted Error Value: White=0.22 (precise) /Black=0.44.  Loses game:     	---       	Black=2      Mistake:       	White=2     	Black=5      Inaccurate:     	White=1     	Black=3      OK:         	White=17    	Black=12     Best:        	White=8     	Black=3      Strong:       	White=2     	---} 1-0

[Event "35th Staufer-Open-A 2025"]
[Site "Schwaebisch Gmuend"]
[Date "2025.01.06"]
[Round "9.18"]
[White "Dordevic, Tom"]
[Black "Zeller, Frank"]
[Result "0-1"]
[ECO "E10"]
[WhiteElo "2135"]
[BlackElo "2325"]
[Annotator "TA"]
[PlyCount "58"]
[EventDate "2024.11.24"]
[EventType "swiss"]
[EventCountry "GER"]
[SourceTitle "playchess.com"]
[Source "ChessBase"]
[SourceQuality "1"]
[TimeControl "40/6000+30:1200+30"]

{[%evp 12,58,64,52,60,53,114,-42,44,0,50,62,60,56,28,-21,-32,-39,-24,-33,-18,-18,-29,-113,-96,-174,-197,-294,-173,-168,-163,-283,-265,-227,-155,-163,-82,-219,-217,-438,-331,-1069,-292,-1145,-1173,-2503,-2065,-29990,-29991]} 1. d4 {[%emt 0:00:02]} Nf6 {[%emt 0:01:58]} 2. c4 {[%emt 0:00:08]} e6 {[%emt 0:00:33]} 3. Nf3 {[%emt 0:00:06]} c5 {[%emt 0:00:22]} 4. d5 {[%emt 0:00:04]} b5 {[%emt 0:00:11]} 5. dxe6 {[%emt 0:00:07]} fxe6 {[%emt 0:00:06]} 6. cxb5 {[%emt 0:00:10]} d5 {[%emt 0:00:10]} 7. Nc3 {[%emt 0:00:07][%cal Oe2e4]} Nbd7 {[%emt 0:00:22]} 8. e4 {[%emt 0:01:17][%cal Re4d5]} Bb7 {[%emt 0:00:50]} (8... d4 $14) 9. Be2 $2 {[%emt 0:02:24]} ({White should try} 9. Ng5 $1 $16 {[%cal Rg5e6]}) 9... Bd6 {[%emt 0:04:12]} (9... d4 $15) 10. O-O {[%emt 0:06:21] and Ng5 should not be overlooked} O-O {[%emt 0:01:13]} (10... d4 $1 $11) 11. Ng5 $14 {[%emt 0:08:37]} Qe7 {[%emt 0:08:26]} 12. f4 {[%emt 0:11:40]} h6 {[%emt 0:09:48]} 13. Nf3 {[%emt 0:10:47]} (13. e5 $1 {was preferable.} hxg5 14. exd6 Qxd6 15. fxg5) 13... Nxe4 $11 {[%emt 0:11:34]} 14. Nxe4 {[%emt 0:00:13]} dxe4 {[%emt 0:00:01]} 15. Nh4 {[%emt 0:00:58]} Kh7 {[%emt 0:00:18][%cal Oc5c4]} 16. Bh5 {[%emt 0:09:09]} Rf6 {[%emt 0:09:25] Prevents Ng6} 17. Bd2 {[%emt 0:15:03] [#]} (17. f5 $11 Ne5 18. Bg5 hxg5 19. Bg6+ Rxg6 (19... Kg8 20. Qh5 $11) 20. Nxg6) 17... g6 $1 $17 {[%emt 0:12:05]} 18. Be2 {[%emt 0:03:48]} (18. Bxg6+ $17 Rxg6 19. Nxg6 Kxg6 20. Be3) 18... Raf8 $19 {[%emt 0:08:44][%cal Rd6f4]} 19. Qa4 {[%emt 0:10:04]} (19. g3 {was worth a try.}) 19... Bb8 {[%emt 0:04:07]} (19... Bxf4 20. Rxf4 Rxf4 21. Bxf4 Rxf4 22. Qxa7 $11) (19... Nb6 $142 20. Qc2 Bxf4 21. Bxf4 Rxf4 22. Rxf4 Rxf4) 20. g3 {[%emt 0:08:21]} e5 {[%emt 0:00:53]} 21. Ng2 {[%emt 0:02:04]} (21. fxe5 $142 Nxe5 (21... Bxe5 22. Be3 $15) 22. Qc2) 21... exf4 {[%emt 0:08:08]} 22. Bxf4 {[%emt 0:00:09]} Ne5 {[%emt 0:00:13]} 23. Rae1 {[%emt 0:03:16] [#]} g5 {[%emt 0:00:43]} ({Better is} 23... Qf7 $1 $19 {aiming for ...Nf3+.} 24. Be3 Nf3+ 25. Bxf3 exf3) 24. Bxe5 {[%emt 0:00:12]} (24. Bd2 $17) 24... Bxe5 {[%emt 0:10:56]} (24... Qxe5 25. Qa3 $11) 25. Rxf6 $2 {[%emt 0:01:14]} (25. Ne3) 25... Qxf6 {[%emt 0:00:12]} ({Less strong is} 25... Bxf6 26. Qa3 $17) 26. Qxa7 $2 {[%emt 0:01:34] White is weak on the dark squares} (26. Kh1 e3 (26... Bxb2 27. Qxa7 Qe7 28. Ne3 $17) 27. Qc4) 26... Qf2+ {[%emt 0:00:33]} 27. Kh1 {[%emt 0:00:04]} Rf7 {[%emt 0:00:03][%cal Of2e2]} 28. Qb6 {[%emt 0:04:38] [#]} Qxe2 $1 {[%emt 0:01:54][%mdl 512]} 29. h4 {[%emt 0:05:36] [#]} (29. Qxb7 Qxe1+) 29... Bxg3 $1 {[%emt 0:01:18]} 0-1

[Event "35th Staufer-Open-A 2025"]
[Site "Schwaebisch Gmuend"]
[Date "2025.01.06"]
[Round "9.19"]
[White "Klaska, Philipp Leon"]
[Black "Gut, Raphael"]
[Result "0-1"]
[ECO "B90"]
[WhiteElo "2264"]
[BlackElo "2133"]
[Annotator "TA"]
[PlyCount "50"]
[EventDate "2024.11.24"]
[EventType "swiss"]
[EventCountry "GER"]
[SourceTitle "playchess.com"]
[Source "ChessBase"]
[SourceQuality "1"]
[TimeControl "40/6000+30:1200+30"]

{[%evp 12,50,7,6,29,18,35,0,17,0,0,-18,0,-13,9,-19,-12,-186,-172,-212,-197,-369,-370,-656,-393,-414,-416,-560,-565,-573,-568,-530,-444,-432,-453,-453,-432,-452,-408,-409,-380]} 1. e4 {[%emt 0:00:06]} c5 {[%emt 0:00:03]} 2. Nf3 {[%emt 0:00:15]} d6 {[%emt 0:00:03]} 3. d4 {[%emt 0:00:24]} cxd4 {[%emt 0:00:04]} 4. Nxd4 {[%emt 0:00:01]} Nf6 {[%emt 0:00:08]} 5. Nc3 {[%emt 0:00:05]} a6 {[%emt 0:00:02]} 6. h3 {[%emt 0:00:10]} e5 {[%emt 0:00:03]} 7. Nde2 {[%emt 0:00:06]} h5 {[%emt 0:00:03]} 8. Bg5 {[%emt 0:00:52]} Be7 {[%emt 0:01:02]} 9. Qd3 {[%emt 0:03:19]} Be6 {[%emt 0:00:49]} 10. O-O-O {[%emt 0:02:11]} Nbd7 {[%emt 0:01:38]} 11. f4 {[%emt 0:10:13]} Qc7 {[%emt 0:20:01]} 12. Kb1 {[%emt 0:08:34]} b5 {[%emt 0:14:00]} 13. Ng3 {[%emt 0:27:37]} Rc8 {[%emt 0:10:52]} 14. Qd2 $2 {[%emt 0:14:57] [#]} (14. Nf5 $11 {and White is okay.}) 14... h4 $1 $19 {[%emt 0:06:10]} 15. Bxf6 {[%emt 0:09:45]} Nxf6 {[%emt 0:00:54]} (15... hxg3 16. Bxe7 (16. Bxg7 Rh7 $14) 16... Kxe7 17. f5 $16) (15... Bxf6 16. Nf5 Bxf5 17. exf5 $11) 16. f5 $2 {[%emt 0:00:33]} (16. Nge2) 16... b4 {[%emt 0:17:33]} (16... hxg3 17. fxe6 fxe6 18. Bd3 $15) 17. Na4 $2 {[%emt 0:06:44]} (17. fxe6 bxc3 18. Qg5 (18. exf7+ $2 Kf8 $19) 18... fxe6 (18... hxg3 $2 19. Qxg7 Rf8 20. Bd3 $19) (18... cxb2 $2 19. Bd3 $19) 19. b3) 17... hxg3 {[%emt 0:00:37]} 18. fxe6 {[%emt 0:00:10]} Nxe4 {[%emt 0:00:09]} (18... fxe6 19. Bxa6 Rb8 (19... Nxe4 20. Qe2 $15) 20. Bd3 $15) 19. exf7+ {[%emt 0:00:06] White is weak on the dark squares} Kf8 $1 {[%emt 0:00:15]} 20. Qe2 {[%emt 0:02:04]} Nf2 {[%emt 0:00:22]} 21. Rg1 {[%emt 0:00:18]} Nxd1 {[%emt 0:00:13]} (21... Kxf7 22. Qf3+ Ke8 23. Rd2 $17) 22. Qxd1 {[%emt 0:00:02]} Qc6 {[%emt 0:02:55]} (22... Kxf7 23. Bxa6 Qc6 24. Bxc8 Rxc8 25. c3 $17) 23. b3 {[%emt 0:00:13]} d5 {[%emt 0:01:58] Repels Bc4} ({Less strong is} 23... Kxf7 24. Bc4+ Kf8 25. Bd5 $17) 24. Be2 {[%emt 0:00:49]} e4 {[%emt 0:05:53][%cal Oh8h6] ...Rh6! is the strong threat.} ({Much less strong is} 24... Kxf7 25. a3 $19) 25. Bg4 {[%emt 0:00:49]} Rc7 {[%emt 0:00:51]} 0-1